fUSD/lending_fUSD_20250807
["ID","MTS","AMOUNT","RATE_DAILY","PERIOD"]
[377847876,1754575844526,-400.0,0.00019452,2]
[377847878,1754575844535,-400.0,0.00019452,2]
[377847880,1754575844545,-510.03,0.00019452,2]
[377847882,1754575844554,-1831.48,0.00019452,2]
[377847884,1754575844564,-654.26,0.00019452,2]
[377847886,1754575844574,-893.56,0.00019452,2]
[377847888,1754575844583,-400.0,0.00019452,2]
[377847890,1754575844593,-455.25,0.00019452,2]
[377847892,1754575844604,-400.0,0.00019452,2]
[377847894,1754575844613,-400.0,0.00019452,2]
[377847896,1754575844623,-400.0,0.00019452,2]
[377847898,1754575844632,-400.0,0.00019452,2]
[377847900,1754575844642,-502.74,0.00019452,2]
[377847902,1754575844651,-400.0,0.00019452,2]
[377847904,1754575844661,-400.0,0.00019452,2]
[377847906,1754575844670,-732.78,0.00019452,2]
[377847908,1754575844680,-1553.31,0.00019452,2]
[377847910,1754575844689,-1432.91,0.00019452,2]
[377847912,1754575844699,-400.0,0.00019452,2]
[377847914,1754575844708,-1040.99,0.00019452,2]
[377847916,1754575844718,-400.0,0.00019452,2]
[377847918,1754575844727,-400.0,0.00019452,2]
[377847920,1754575844737,-400.0,0.00019452,2]
[377847922,1754575844747,-400.0,0.00019452,2]
[377847924,1754575844757,-400.0,0.00019452,2]
[377847926,1754575844766,-1379.54,0.00019452,2]
[377847928,1754575844776,-1196.97,0.00019452,2]
[377847930,1754575844786,-400.0,0.00019452,2]
[377847932,1754575844796,-400.0,0.00019452,2]
[377847934,1754575844806,-771.71,0.00019452,2]
[377847936,1754575844816,-400.0,0.00019452,2]
[377847938,1754575844825,-400.0,0.00019452,2]
[377847940,1754575844835,-400.0,0.00019452,2]
[377847942,1754575844845,-1132.64,0.00019452,2]
[377847944,1754575844855,-400.0,0.00019452,2]
[377847946,1754575844864,-400.0,0.00019452,2]
[377847948,1754575844874,-484.77,0.00019452,2]
[377847950,1754575844884,-675.75,0.00019452,2]
[377847952,1754575844894,-667.48,0.00019452,2]
[377847954,1754575844904,-410.33,0.00019452,2]
[377847956,1754575844913,-481.06,0.00019452,2]
[377847958,1754575844923,-5427.36,0.00019452,2]
[377847960,1754575844932,-1377.44,0.00019452,2]
[377847962,1754575844942,-400.0,0.00019452,2]
[377847965,1754575844952,-890.18,0.00019452,2]
[377847966,1754575844961,-400.0,0.00019452,2]
[377847968,1754575844970,-400.0,0.00019452,2]
[377847970,1754575844980,-400.0,0.00019452,2]
[377847972,1754575844989,-400.0,0.00019452,2]
[377847974,1754575845001,-1119.63,0.00019452,2]
[377847976,1754575845013,-400.0,0.00019452,2]
[377847979,1754575845024,-1146.58,0.00019452,2]
[377847981,1754575845033,-1790.23,0.00019452,2]
[377847983,1754575845043,-400.0,0.00019452,2]
[377847985,1754575845053,-400.0,0.00019452,2]
[377847987,1754575845063,-400.0,0.00019452,2]
[377847988,1754575845072,-400.0,0.00019452,2]
[377847991,1754575845083,-1357.06,0.00019452,2]
[377847993,1754575845095,-400.0,0.00019452,2]
[377847995,1754575845105,-400.0,0.00019452,2]
[377847996,1754575845114,-875.04,0.00019452,2]
[377847998,1754575845124,-400.0,0.00019452,2]
[377848000,1754575845134,-868.79,0.00019452,2]
[377848002,1754575845143,-2099.8,0.00019452,2]
[377848004,1754575845153,-400.0,0.00019452,2]
[377848006,1754575845162,-1136.57,0.00019452,2]
[377848008,1754575845172,-550.93,0.00019452,2]
[377848010,1754575845181,-400.0,0.00019452,2]
[377848012,1754575845191,-1497.81,0.00019452,2]
[377848014,1754575845200,-400.0,0.00019452,2]
[377848016,1754575845210,-608.12,0.00019452,2]
[377848018,1754575845219,-980.05,0.00019452,2]
[377848020,1754575845229,-565.87,0.00019452,2]
[377848022,1754575845238,-511.37,0.00019452,2]
[377848024,1754575845248,-400.0,0.00019452,2]
[377848026,1754575845257,-1562.37,0.00019452,2]
[377848028,1754575845267,-451.69,0.00019452,2]
[377848030,1754575845277,-400.0,0.00019452,2]
[377848032,1754575845286,-400.0,0.00019452,2]
[377848034,1754575845296,-400.0,0.00019452,2]
[377848036,1754575845305,-664.44,0.00019452,2]
[377848038,1754575845315,-1444.15,0.00019452,2]
[377848040,1754575845325,-471.80905337,0.00019452,2]
[377848042,1754575845335,-400.0,0.00019452,2]
[377848044,1754575845346,-1067.21,0.00019452,2]
[377848046,1754575845356,-1998.64,0.00019452,2]
[377848048,1754575845366,-1622.88,0.00019452,2]
[377848050,1754575845375,-729.52,0.00019452,2]
[377848052,1754575845385,-517.17,0.00019452,2]
[377848054,1754575845395,-400.0,0.00019452,2]
[377848056,1754575845404,-400.0,0.00019452,2]
[377848058,1754575845413,-400.0,0.00019452,2]
[377848060,1754575845423,-1808.36,0.00019452,2]
[377848062,1754575845433,-400.0,0.00019452,2]
[377848064,1754575845443,-843.58,0.00019452,2]
[377848066,1754575845453,-1821.31,0.00019452,2]
[377848069,1754575845463,-1010.46,0.00019452,2]
[377848071,1754575845472,-400.0,0.00019452,2]
[377848073,1754575845482,-400.0,0.00019452,2]
[377848075,1754575845491,-1865.51,0.00019452,2]
[377848077,1754575845501,-716.37,0.00019452,2]
[377848079,1754575845510,-400.0,0.00019452,2]
[377848081,1754575845520,-1358.97,0.00019452,2]
[377848083,1754575845529,-623.95,0.00019452,2]
[377848085,1754575845539,-400.0,0.00019452,2]
[377848087,1754575845550,-1002.91,0.00019452,2]
[377848089,1754575845560,-400.0,0.00019452,2]
[377848091,1754575845570,-1259.85,0.00019452,2]
[377848093,1754575845580,-400.0,0.00019452,2]
[377848095,1754575845590,-400.0,0.00019452,2]
[377848097,1754575845602,-400.0,0.00019452,2]
[377848099,1754575845611,-400.0,0.00019452,2]
[377848101,1754575845621,-400.0,0.00019452,2]
[377848103,1754575845631,-400.0,0.00019452,2]
[377848105,1754575845640,-400.0,0.00019452,2]
[377848107,1754575845650,-1258.35,0.00019452,2]
[377848109,1754575845660,-400.0,0.00019452,2]
[377848111,1754575845671,-400.0,0.00019452,2]
[377848113,1754575845681,-1434.22,0.00019452,2]
[377848115,1754575845691,-1242.96,0.00019452,2]
[377848117,1754575845700,-1485.24,0.00019452,2]
[377848119,1754575845710,-400.0,0.00019452,2]
[377848121,1754575845719,-1231.87,0.00019452,2]
[377848123,1754575845729,-400.0,0.00019452,2]
[377848125,1754575845738,-400.0,0.00019452,2]
[377848127,1754575845748,-664.92,0.00019452,2]
[377848129,1754575845757,-400.0,0.00019452,2]
[377848131,1754575845767,-1389.78,0.00019452,2]
[377848133,1754575845777,-400.0,0.00019452,2]
[377848135,1754575845787,-723.74,0.00019452,2]
[377848137,1754575845797,-400.0,0.00019452,2]
[377848139,1754575845807,-721.62,0.00019452,2]
[377848141,1754575845817,-400.0,0.00019452,2]
[377848143,1754575845827,-351.31,0.00019452,2]
[377848145,1754575845837,-447.86,0.00019452,2]
[377848147,1754575845850,-259.39396318,0.00019452,2]
[377848149,1754575845859,-1596.26,0.00019452,2]
[377848164,1754575845988,-1682.33,0.00019452,2]
[377848166,1754575845999,-577.27,0.00019452,2]
[377848168,1754575846013,-1243.7,0.00019452,2]
[377848170,1754575846022,-931.4,0.00019452,2]
[377848172,1754575846031,-400.0,0.00019452,2]
[377848174,1754575846040,-422.5,0.00019452,2]
[377848176,1754575846050,-1559.36,0.00019452,2]
[377848178,1754575846060,-400.0,0.00019452,2]
[377848180,1754575846070,-333.85264512,0.00019452,2]
[377848181,1754575846079,-968.61,0.00019452,2]
[377848184,1754575846090,-890.68,0.00019452,2]
[377848186,1754575846101,-400.0,0.00019452,2]
[377848188,1754575846111,-1356.68,0.00019452,2]
[377848190,1754575846120,-400.0,0.00019452,2]
[377848192,1754575846129,-626.62,0.00019452,2]
[377848194,1754575846139,-400.0,0.00019452,2]
[377848196,1754575846148,-1016.76,0.00019452,2]
[377848198,1754575846157,-400.0,0.00019452,2]
[377848200,1754575846167,-1080.22,0.00019452,2]
[377848202,1754575846177,-674.33,0.00019452,2]
[377848204,1754575846187,-400.0,0.00019452,2]
[377848206,1754575846197,-400.0,0.00019452,2]
[377848208,1754575846216,-429.77,0.00019452,2]
[377848210,1754575846226,-1147.94,0.00019452,2]
[377848212,1754575846235,-400.0,0.00019452,2]
[377848214,1754575846245,-400.0,0.00019452,2]
[377848216,1754575846255,-1138.11,0.00019452,2]
[377848217,1754575846265,-400.0,0.00019452,2]
[377848218,1754575846274,-1865.8,0.00019452,2]
[377848219,1754575846283,-1308.8,0.00019452,2]
[377848220,1754575846292,-1506.86,0.00019452,2]
[377848221,1754575846301,-400.0,0.00019452,2]
[377848222,1754575846310,-400.0,0.00019452,2]
[377848223,1754575846318,-400.0,0.00019452,2]
[377848224,1754575846327,-913.33,0.00019452,2]
[377848225,1754575846336,-474.28,0.00019452,2]
[377848226,1754575846346,-414.82,0.00019452,2]
[377848227,1754575846355,-151.0,0.00019452,2]
[377848228,1754575846363,-1612.96,0.00019452,2]
[377848229,1754575846373,-400.0,0.00019452,2]
[377848230,1754575846382,-400.0,0.00019452,2]
[377848232,1754575846391,-400.0,0.00019452,2]
[377848234,1754575846400,-190.0,0.00019452,2]
[377848236,1754575846409,-1703.74,0.00019452,2]
[377848238,1754575846419,-637.83,0.00019452,2]
[377848240,1754575846428,-693.46,0.00019452,2]
[377848241,1754575846438,-2690.62,0.00019452,2]
[377848243,1754575846447,-400.0,0.00019452,2]
[377848245,1754575846456,-440.0,0.00019452,2]
[377848247,1754575846466,-2681.58,0.00019452,2]
[377848249,1754575846475,-1545.86,0.00019452,2]
[377848251,1754575846484,-400.0,0.00019452,2]
[377848253,1754575846494,-151.0,0.00019452,2]
[377848255,1754575846503,-400.0,0.00019452,2]
[377848257,1754575846512,-1678.28,0.00019452,2]
[377848259,1754575846522,-400.0,0.00019452,2]
[377848261,1754575846531,-400.0,0.00019452,2]
[377848263,1754575846540,-1625.96,0.00019452,2]
[377848265,1754575846549,-655.3,0.00019452,2]
[377848267,1754575846558,-589.9,0.00019452,2]
[377848269,1754575846568,-400.0,0.00019452,2]
[377848271,1754575846577,-1016.28,0.00019452,2]
[377848273,1754575846587,-825.31,0.00019452,2]
[377848275,1754575846598,-1505.36,0.00019452,2]
[377848277,1754575846607,-1323.91,0.00019452,2]
[377848279,1754575846617,-400.0,0.00019452,2]
[377848281,1754575846626,-400.0,0.00019452,2]
[377848283,1754575846636,-813.07,0.00019452,2]
[377848285,1754575846645,-1392.75,0.00019452,2]
[377848287,1754575846654,-1496.09,0.00019452,2]
[377848289,1754575846663,-783.73,0.00019452,2]
[377848291,1754575846672,-2523.75,0.00019452,2]
[377848293,1754575846681,-2031.75,0.00019452,2]
[377848295,1754575846690,-400.0,0.00019452,2]
[377848297,1754575846699,-400.0,0.00019452,2]
[377848299,1754575846709,-881.16,0.00019452,2]
[377848301,1754575846718,-908.23,0.00019452,2]
[377848303,1754575846729,-400.0,0.00019452,2]
[377848304,1754575846738,-400.0,0.00019452,2]
[377848306,1754575846747,-675.28,0.00019452,2]
[377848308,1754575846756,-400.0,0.00019452,2]
[377848310,1754575846766,-400.0,0.00019452,2]
[377848312,1754575846775,-400.0,0.00019452,2]
[377848314,1754575846784,-1345.53,0.00019452,2]
[377848316,1754575846794,-515.68,0.00019452,2]
[377848318,1754575846803,-400.0,0.00019452,2]
[377848320,1754575846814,-734.72,0.00019452,2]
[377848322,1754575846824,-401.43,0.00019452,2]
[377848324,1754575846834,-1212.26,0.00019452,2]
[377848326,1754575846843,-667.97,0.00019452,2]
[377848328,1754575846853,-1443.27,0.00019452,2]
[377848330,1754575846862,-400.0,0.00019452,2]
[377848332,1754575846871,-1126.25,0.00019452,2]
[377848334,1754575846880,-400.0,0.00019452,2]
[377848336,1754575846889,-400.0,0.00019452,2]
[377848338,1754575846898,-2180.95,0.00019452,2]
[377848340,1754575846908,-417.24,0.00019452,2]
[377848342,1754575846917,-1404.1,0.00019452,2]
[377848344,1754575846926,-151.0,0.00019452,2]
[377848346,1754575846935,-1574.55,0.00019452,2]
[377848348,1754575846944,-400.0,0.00019452,2]
[377848350,1754575846954,-1370.36,0.00019452,2]
[377848352,1754575846963,-206.209934,0.00019452,2]
[377848354,1754575846972,-568.17,0.00019452,2]
[377848356,1754575846981,-416.54,0.00019452,2]
[377848358,1754575846991,-787.16,0.00019452,2]
[377848360,1754575847001,-465.19,0.00019452,2]
[377848362,1754575847014,-400.0,0.00019452,2]
[377848364,1754575847023,-2004.65,0.00019452,2]
[377848366,1754575847032,-400.0,0.00019452,2]
[377848368,1754575847043,-1284.25,0.00019452,2]
[377848370,1754575847052,-1210.65,0.00019452,2]
[377848372,1754575847061,-666.56,0.00019452,2]
[377848374,1754575847071,-400.0,0.00019452,2]
[377848376,1754575847081,-2421.52,0.00019452,2]
[377848378,1754575847090,-400.0,0.00019452,2]
[377848380,1754575847101,-974.09,0.00019452,2]
[377848382,1754575847111,-1261.03,0.00019452,2]
[377848384,1754575847120,-725.69,0.00019452,2]
[377848386,1754575847129,-400.0,0.00019452,2]
[377848388,1754575847139,-1232.82,0.00019452,2]
[377848390,1754575847148,-735.99,0.00019452,2]
[377848392,1754575847157,-2957.03,0.00019452,2]
[377848394,1754575847167,-400.0,0.00019452,2]
[377848396,1754575847176,-489.48,0.00019452,2]
[377848398,1754575847186,-844.34,0.00019452,2]
[377848400,1754575847195,-457.25,0.00019452,2]
[377848402,1754575847204,-2243.81,0.00019452,2]
[377848404,1754575847213,-2244.55,0.00019452,2]
[377848406,1754575847222,-1860.45,0.00019452,2]
[377848408,1754575847231,-400.0,0.00019452,2]
[377848410,1754575847241,-1321.84,0.00019452,2]
[377848412,1754575847250,-2577.57,0.00019452,2]
[377848414,1754575847260,-1079.79,0.00019452,2]
[377848416,1754575847270,-400.0,0.00019452,2]
[377848418,1754575847279,-656.07,0.00019452,2]
[377848420,1754575847289,-400.0,0.00019452,2]
[377848422,1754575847298,-1876.15,0.00019452,2]
[377848424,1754575847307,-400.0,0.00019452,2]
[377848426,1754575847316,-1945.25,0.00019452,2]
[377848428,1754575847326,-397.61002846,0.00019452,2]
[377848430,1754575847335,-420.48,0.00019452,2]
[377848432,1754575847346,-656.78,0.00019452,2]
[377848434,1754575847355,-444.59,0.00019452,2]
[377848436,1754575847364,-408.85,0.00019452,2]
[377848438,1754575847373,-2552.8,0.00019452,2]
[377848440,1754575847382,-415.78,0.00019452,2]
[377848442,1754575847391,-400.0,0.00019452,2]
[377848444,1754575847400,-1144.43,0.00019452,2]
[377848446,1754575847410,-2338.06,0.00019452,2]
[377848448,1754575847418,-1534.28,0.00019452,2]
[377848450,1754575847427,-400.0,0.00019452,2]
[377848452,1754575847437,-4011.4,0.00019452,2]
[377848454,1754575847447,-3381.66,0.00019452,2]
[377848456,1754575847456,-482.65,0.00019452,2]
[377848458,1754575847465,-1708.16,0.00019452,2]
[377848460,1754575847473,-400.0,0.00019452,2]
[377848462,1754575847482,-1394.56,0.00019452,2]
[377848464,1754575847491,-400.0,0.00019452,2]
[377848466,1754575847500,-455.02,0.00019452,2]
[377848468,1754575847510,-400.0,0.00019452,2]
[377848469,1754575847518,-1340.17,0.00019452,2]
[377848471,1754575847527,-459.55,0.00019452,2]
[377848473,1754575847537,-403.80772208,0.00019452,2]
[377848475,1754575847546,-1259.93,0.00019452,2]
[377848477,1754575847554,-1329.3,0.00019452,2]
[377848479,1754575847564,-2469.81,0.00019452,2]
[377848481,1754575847573,-678.08,0.00019452,2]
[377848483,1754575847582,-1379.48,0.00019452,2]
[377848485,1754575847591,-1290.28,0.00019452,2]
[377848487,1754575847601,-435.31,0.00019452,2]
[377848489,1754575847610,-2362.82,0.00019452,2]
[377848491,1754575847619,-1184.05,0.00019452,2]
[377848493,1754575847628,-400.0,0.00019452,2]
[377848495,1754575847639,-1995.24,0.00019452,2]
[377848497,1754575847648,-400.0,0.00019452,2]
[377848499,1754575847657,-2008.49,0.00019452,2]
[377848501,1754575847667,-400.0,0.00019452,2]
[377848503,1754575847676,-507.41,0.00019452,2]
[377848505,1754575847686,-400.0,0.00019452,2]
[377848507,1754575847695,-1838.62,0.00019452,2]
[377848509,1754575847705,-2433.29,0.00019452,2]
[377848511,1754575847714,-2360.06,0.00019452,2]
[377848513,1754575847723,-1072.37,0.00019452,2]
[377848515,1754575847732,-400.0,0.00019452,2]
[377848517,1754575847742,-400.0,0.00019452,2]
[377848519,1754575847751,-934.09,0.00019452,2]
[377848521,1754575847760,-400.0,0.00019452,2]
[377848523,1754575847769,-615.62,0.00019452,2]
[377848525,1754575847779,-793.32,0.00019452,2]
[377848527,1754575847788,-3076.13,0.00019452,2]
[377848529,1754575847797,-400.0,0.00019452,2]
[377848531,1754575847807,-1870.26,0.00019452,2]
[377848533,1754575847815,-400.0,0.00019452,2]
[377848535,1754575847825,-438.12,0.00019452,2]
[377848537,1754575847834,-818.81,0.00019452,2]
[377848539,1754575847844,-400.0,0.00019452,2]
[377848541,1754575847854,-151.0,0.00019452,2]
[377848543,1754575847863,-791.68,0.00019452,2]
[377848545,1754575847872,-1728.89,0.00019452,2]
[377848547,1754575847882,-1391.75,0.00019452,2]
[377848549,1754575847891,-1661.35,0.00019452,2]
[377848551,1754575847900,-277.68893214,0.00019452,2]
[377848553,1754575847909,-1793.97,0.00019452,2]
[377848555,1754575847919,-847.27,0.00019452,2]
[377848557,1754575847928,-517.2,0.00019452,2]
[377848559,1754575847937,-151.0,0.00019452,2]
[377848561,1754575847946,-400.0,0.00019452,2]
[377848563,1754575847955,-1238.16,0.00019452,2]
[377848565,1754575847964,-425.56,0.00019452,2]
[377848567,1754575847973,-1403.4,0.00019452,2]
[377848569,1754575847982,-2236.37,0.00019452,2]
[377848571,1754575847991,-731.94,0.00019452,2]
[377848573,1754575848001,-510.24,0.00019452,2]
[377848575,1754575848014,-400.0,0.00019452,2]
[377848577,1754575848023,-902.93,0.00019452,2]
[377848579,1754575848032,-502.92,0.00019452,2]
[377848581,1754575848041,-413.79,0.00019452,2]
[377848584,1754575848053,-3525.26,0.00019452,2]
[377848585,1754575848062,-441.44,0.00019452,2]
[377848587,1754575848071,-631.33,0.00019452,2]
[377848589,1754575848082,-1331.21,0.00019452,2]
[377848591,1754575848092,-400.0,0.00019452,2]
[377848593,1754575848102,-152.199088,0.00019452,2]
[377848595,1754575848112,-849.32,0.00019452,2]
[377848597,1754575848121,-1497.67,0.00019452,2]
[377848599,1754575848131,-2289.33,0.00019452,2]
[377848602,1754575848141,-1333.75,0.00019452,2]
[377848603,1754575848150,-1117.21,0.00019452,2]
[377848606,1754575848160,-699.04,0.00019452,2]
[377848607,1754575848170,-1122.63,0.00019452,2]
[377848610,1754575848179,-1951.47,0.00019452,2]
[377848611,1754575848189,-400.0,0.00019452,2]
[377848613,1754575848198,-400.0,0.00019452,2]
[377848615,1754575848208,-594.0,0.00019452,2]
[377848617,1754575848217,-402.24706152,0.00019452,2]
[377848619,1754575848227,-767.81,0.00019452,2]
[377848621,1754575848236,-2506.28,0.00019452,2]
[377848623,1754575848245,-790.53,0.00019452,2]
[377848625,1754575848255,-3703.76,0.00019452,2]
[377848627,1754575848265,-1012.08,0.00019452,2]
[377848629,1754575848274,-400.0,0.00019452,2]
[377848631,1754575848283,-1742.7,0.00019452,2]
[377848633,1754575848292,-564.41,0.00019452,2]
[377848635,1754575848302,-1842.33,0.00019452,2]
[377848637,1754575848311,-1265.76,0.00019452,2]
[377848639,1754575848320,-400.0,0.00019452,2]
[377848641,1754575848330,-1163.38,0.00019452,2]
[377848643,1754575848339,-1065.01,0.00019452,2]
[377848645,1754575848349,-1337.12,0.00019452,2]
[377848647,1754575848358,-416.39,0.00019452,2]
[377848649,1754575848368,-788.81,0.00019452,2]
[377848651,1754575848378,-1810.24,0.00019452,2]
[377848653,1754575848388,-535.98,0.00019452,2]
[377848655,1754575848397,-1060.73,0.00019452,2]
[377848657,1754575848406,-464.12,0.00019452,2]
[377848659,1754575848415,-400.0,0.00019452,2]
[377848661,1754575848424,-1277.99,0.00019452,2]
[377848663,1754575848434,-940.64,0.00019452,2]
[377848665,1754575848443,-400.0,0.00019452,2]
[377848667,1754575848452,-542.59,0.00019452,2]
[377848669,1754575848462,-1424.36,0.00019452,2]
[377848671,1754575848471,-1700.39,0.00019452,2]
[377848673,1754575848481,-385.38467126,0.00019452,2]
[377848675,1754575848491,-885.03,0.00019452,2]
[377848677,1754575848500,-1293.41,0.00019452,2]
[377848679,1754575848509,-333.91190305,0.00019452,2]
[377848681,1754575848519,-590.62,0.00019452,2]
[377848683,1754575848528,-400.0,0.00019452,2]
[377848685,1754575848537,-910.79,0.00019452,2]
[377848687,1754575848547,-400.0,0.00019452,2]
[377848689,1754575848556,-405.84,0.00019452,2]
[377848691,1754575848566,-278.094556,0.00019452,2]
[377848693,1754575848575,-400.0,0.00019452,2]
[377848695,1754575848585,-1408.76,0.00019452,2]
[377848697,1754575848595,-736.17,0.00019452,2]
[377848699,1754575848606,-1803.27,0.00019452,2]
[377848701,1754575848617,-688.83,0.00019452,2]
[377848703,1754575848627,-1068.91,0.00019452,2]
[377848705,1754575848637,-893.61,0.00019452,2]
[377848707,1754575848646,-1367.16,0.00019452,2]
[377848709,1754575848655,-400.0,0.00019452,2]
[377848711,1754575848665,-400.0,0.00019452,2]
[377848713,1754575848675,-400.0,0.00019452,2]
[377848715,1754575848685,-1528.89,0.00019452,2]
[377848717,1754575848695,-400.0,0.00019452,2]
[377848719,1754575848705,-186.92,0.00019454,2]
[377848721,1754575848714,-156.82797237,0.00019479,2]
[377848723,1754575848724,-2959.0,0.00019487,2]
[377848725,1754575848734,-636.58065666,0.00019492,2]
[377848727,1754575848743,-5511.0,0.000195,5]
[377848729,1754575848752,-471.94,0.00019552,2]
[377848731,1754575848761,-169.0,0.00019562,2]
[377848733,1754575848771,-150.0,0.0001957,2]
[377848735,1754575848781,-1803.54129768,0.00019573,2]
[377848737,1754575848791,-4214.24698384,0.00019652,2]
[377848739,1754575848801,-198.50386652,0.0001967,2]
[377848741,1754575848811,-157.216703,0.000197,2]
[377848743,1754575848820,-219.222952,0.000197,2]
[377848745,1754575848830,-151.0,0.000197,2]
[377848747,1754575848840,-151.0,0.000197,2]
[377848749,1754575848850,-2959.0,0.00019718,2]
[377848751,1754575848860,-500.0,0.00019725,2]
[377848753,1754575848869,-400.0,0.00019726,2]
[377848755,1754575848879,-228.28654692,0.00019726,2]
[377848757,1754575848888,-400.0,0.00019726,2]
[377848759,1754575848898,-400.0,0.00019726,2]
[377848761,1754575848908,-400.0,0.00019726,2]
[377848763,1754575848918,-400.0,0.00019726,2]
[377848765,1754575848928,-150.866752,0.00019726,2]
[377848767,1754575848937,-400.0,0.00019726,2]
[377848769,1754575848947,-400.0,0.00019726,2]
[377848771,1754575848957,-150.613148,0.00019726,2]
[377848773,1754575848967,-400.0,0.00019726,2]
[377848776,1754575848976,-828.07,0.00019726,2]
[377848778,1754575848986,-400.0,0.00019726,2]
[377848780,1754575848996,-400.0,0.00019726,2]
[377848782,1754575849008,-434.58,0.00019726,2]
[377848784,1754575849018,-2476.39,0.00019726,2]
[377848786,1754575849027,-9647.26,0.00019726,2]
[377848788,1754575849037,-400.0,0.00019726,2]
[377848790,1754575849047,-400.0,0.00019726,2]
[377848791,1754575849057,-710.3,0.00019726,2]
[377848792,1754575849067,-400.57,0.00019726,2]
[377848793,1754575849077,-1647.96,0.00019726,2]
[377848794,1754575849089,-400.0,0.00019726,2]
[377848795,1754575849100,-400.0,0.00019726,2]
[377848796,1754575849110,-501.72,0.00019726,2]
[377848797,1754575849119,-931.05,0.00019726,2]
[377848798,1754575849129,-307.68847503,0.00019726,2]
[377848799,1754575849139,-897.27,0.00019726,2]
[377848800,1754575849148,-400.0,0.00019726,2]
[377848801,1754575849158,-400.0,0.00019726,2]
[377848802,1754575849168,-522.96,0.00019726,2]
[377848804,1754575849177,-400.0,0.00019726,2]
[377848806,1754575849188,-327.58937267,0.00019726,2]
[377848808,1754575849198,-510.03,0.00019726,2]
[377848810,1754575849208,-1831.48,0.00019726,2]
[377848812,1754575849218,-654.26,0.00019726,2]
[377848814,1754575849228,-400.0,0.00019726,2]
[377848816,1754575849238,-893.56,0.00019726,2]
[377848818,1754575849248,-455.25,0.00019726,2]
[377848820,1754575849259,-400.0,0.00019726,2]
[377848822,1754575849269,-400.0,0.00019726,2]
[377848824,1754575849279,-400.0,0.00019726,2]
[377848826,1754575849289,-400.0,0.00019726,2]
[377848828,1754575849299,-502.74,0.00019726,2]
[377848830,1754575849308,-400.0,0.00019726,2]
[377848832,1754575849318,-400.0,0.00019726,2]
[377848834,1754575849328,-732.78,0.00019726,2]
[377848836,1754575849337,-1553.31,0.00019726,2]
[377848838,1754575849347,-1432.91,0.00019726,2]
[377848840,1754575849358,-400.0,0.00019726,2]
[377848842,1754575849367,-1040.99,0.00019726,2]
[377848844,1754575849377,-400.0,0.00019726,2]
[377848846,1754575849387,-400.0,0.00019726,2]
[377848848,1754575849396,-400.0,0.00019726,2]
[377848850,1754575849406,-400.0,0.00019726,2]
[377848853,1754575849416,-400.0,0.00019726,2]
[377848855,1754575849426,-1379.54,0.00019726,2]
[377848857,1754575849436,-1196.97,0.00019726,2]
[377848859,1754575849446,-400.0,0.00019726,2]
[377848861,1754575849457,-400.0,0.00019726,2]